bitfinex-derivatives/quotes_BTCF0:USTF0_20210707
["timestamp","ask_amount","ask_price","bid_price","bid_amount"]
[1625623531283,3.62242382,34151.0,34150.0,0.00449985]
[1625623536336,5.17495393,34151.0,34150.0,0.00449985]
[1625623536879,5.17495393,34151.0,34149.0,0.00450006]
[1625623537057,3.62269698,34150.0,34148.0,1.02835526]
[1625623537360,3.6226023,34149.0,34148.0,1.02835526]
[1625623537598,3.6226023,34149.0,34148.0,1.03285525]
[1625623539041,3.86317774,34149.0,34148.0,1.03285525]
[1625623539402,3.86317774,34149.0,34148.0,0.00449999]
[1625623541023,3.86317774,34149.0,34148.0,1.03275267]
[1625623542769,3.86317774,34149.0,34148.0,0.00449999]
[1625623545648,0.24057544,34149.0,34148.0,0.00449999]
[1625623545890,1.79283288,34149.0,34147.0,0.00449448]
[1625623546131,0.24057544,34149.0,34148.0,0.00449456]
[1625623546372,5.414199,34149.0,34148.0,0.00449456]
[1625623546614,5.414199,34149.0,34146.0,0.00449471]
[1625623546915,5.17391376,34147.0,34143.0,0.00449491]
[1625623547037,0.48115088,34144.0,34143.0,0.00449491]
[1625623547155,0.48115088,34144.0,34140.0,0.68862228]
[1625623547156,6.34537104,34144.0,34140.0,0.68862228]
[1625623547396,4.4433,34140.0,34139.0,0.68894859]
[1625623547516,4.76782,34140.0,34139.0,0.68894859]
[1625623547639,9.08018259,34140.0,34139.0,0.00449559]
[1625623548058,10.6325584,34140.0,34139.0,0.00449559]
[1625623548358,9.08018259,34140.0,34139.0,0.00449559]
[1625623548598,10.62994155,34140.0,34139.0,0.00449559]
[1625623548719,10.62994155,34140.0,34135.0,0.68941139]
[1625623548837,10.62994155,34140.0,34133.0,0.68945663]
[1625623549023,5.02263218,34134.0,34131.0,0.68957874]
[1625623549257,4.29987519,34132.0,34131.0,0.68007874]
[1625623549377,4.51836519,34132.0,34131.0,0.68007874]
[1625623549499,4.51836519,34132.0,34131.0,0.00448693]
[1625623550040,4.51836519,34132.0,34130.0,0.00448688]
[1625623550163,4.5285,34131.0,34130.0,0.00448688]
[1625623550281,8.13324305,34131.0,34129.0,0.00448702]
[1625623550402,2.2313746,34130.0,34129.0,0.00448702]
[1625623550643,3.60437407,34130.0,34128.0,0.00448702]
[1625623550824,1.02969675,34129.0,34128.0,0.00448702]
[1625623550944,2.23098103,34129.0,34126.0,1.03315623]
[1625623551064,1.02972999,34127.0,34126.0,1.03315623]
[1625623552507,1.02852286,34128.0,34125.0,1.03211897]
[1625623552748,1.50994131,34129.0,34125.0,1.03211897]
[1625623552865,1.50994131,34129.0,34126.0,3.7363]
[1625623552985,1.50994131,34129.0,34127.0,0.24057544]
[1625623553167,0.48115088,34129.0,34127.0,1.27257303]
[1625623553406,0.48115088,34129.0,34127.0,0.24057544]
[1625623553647,0.48115088,34129.0,34127.0,1.27257703]
[1625623554369,0.48115088,34129.0,34127.0,0.24057544]
[1625623558095,0.48115088,34129.0,34124.0,1.03034019]
[1625623558880,0.48115088,34129.0,34123.0,1.02995383]
[1625623559240,0.24057544,34124.0,34123.0,1.02995383]
[1625623559904,0.24057544,34124.0,34123.0,6.11795383]
[1625623561165,0.24057544,34124.0,34123.0,6.12244164]
[1625623561285,0.24057544,34124.0,34123.0,6.11795383]
[1625623561825,0.24057544,34124.0,34123.0,6.12244152]
[1625623562425,0.24057544,34124.0,34123.0,7.31887297]
[1625623562547,0.24057544,34124.0,34123.0,8.69128621]
[1625623562667,0.24057544,34129.0,34123.0,8.69577369]
[1625623562787,0.24057544,34134.0,34123.0,8.91521369]
[1625623562970,0.24057544,34134.0,34127.0,1.02925942]
[1625623563207,0.24057544,34134.0,34133.0,0.24057544]
[1625623563330,0.24057544,34134.0,34133.0,0.46009544]
[1625623566515,1.02513782,34138.0,34133.0,0.46009544]
[1625623566635,0.9126,34139.0,34133.0,0.46009544]
[1625623567239,0.9126,34139.0,34138.0,0.24057544]
[1625623567418,1.26679656,34142.0,34138.0,0.24057544]
[1625623567597,0.24057544,34142.0,34138.0,0.24057544]
[1625623569459,1.26610977,34142.0,34138.0,0.24057544]
[1625623573848,1.26610977,34142.0,34139.0,0.0044988]
[1625623576252,1.02686478,34141.0,34139.0,0.0044988]
[1625623576493,0.24057544,34142.0,34139.0,0.0044988]
[1625623576494,1.26725217,34142.0,34139.0,0.0044988]
[1625623576733,1.26725217,34142.0,34133.0,0.24057544]
[1625623576734,1.02616021,34140.0,34133.0,0.24057544]
[1625623577038,1.02545932,34138.0,34134.0,0.00450011]
[1625623577214,4.94489633,34135.0,34134.0,0.00450011]
[1625623577335,5.71131721,34135.0,34134.0,0.00450011]
[1625623577456,6.73748422,34135.0,34134.0,0.00450011]
[1625623578359,6.73748422,34135.0,34130.0,0.24057544]
[1625623578480,7.93473596,34135.0,34126.0,0.51490958]
[1625623578661,1.02655912,34133.0,34131.0,0.00450089]
[1625623578899,0.51338706,34132.0,34127.0,0.00450089]
[1625623579259,0.51343633,34131.0,34127.0,0.00450089]
[1625623579380,0.48115088,34128.0,34127.0,0.00450089]
[1625623579559,0.80464088,34128.0,34127.0,0.00450089]
[1625623579680,0.80464088,34128.0,34126.0,0.00450095]
[1625623580341,0.80464088,34128.0,34126.0,0.51942625]
[1625623580701,0.48115088,34128.0,34127.0,0.00449971]
[1625623581064,0.48115088,34128.0,34127.0,0.519453]
[1625623581483,0.48115088,34128.0,34127.0,0.00449971]
[1625623581845,0.48115088,34128.0,34126.0,0.00449971]
[1625623581965,0.82498088,34128.0,34126.0,0.00449971]
[1625623582084,0.82498088,34128.0,34127.0,0.00449976]
[1625623582448,1.33878721,34128.0,34127.0,0.00449976]
[1625623582627,1.33878721,34128.0,34126.0,0.00450026]
[1625623582866,1.33878721,34128.0,34127.0,0.00450026]
[1625623583107,1.33878721,34128.0,34126.0,0.00450038]
[1625623583946,0.51361281,34127.0,34126.0,0.00450038]
[1625623584366,1.33879665,34128.0,34126.0,0.00450038]
[1625623584608,0.51383224,34127.0,34126.0,0.00450038]
[1625623587566,5.76093224,34127.0,34126.0,0.00450038]
[1625623587692,6.11061224,34127.0,34126.0,0.00450038]
[1625623588169,7.1386839,34127.0,34126.0,0.00450038]
[1625623588771,6.11061224,34127.0,34126.0,0.00450038]
[1625623589010,7.13879819,34127.0,34126.0,0.00450038]
[1625623589190,7.13879819,34127.0,34125.0,0.24057544]
[1625623589490,1.54197022,34126.0,34125.0,0.24057544]
[1625623589913,1.54197022,34126.0,34121.0,0.75583437]
[1625623590034,1.54197022,34126.0,34121.0,0.24057544]
[1625623590153,0.5137615,34123.0,34121.0,0.24057544]
[1625623591355,0.5137615,34123.0,34119.0,0.51521725]
[1625623591537,0.48115088,34119.0,34118.0,0.51529282]
[1625623591660,0.71908088,34119.0,34118.0,0.51529282]
[1625623592018,0.71908088,34119.0,34118.0,0.51979031]
[1625623595198,0.48115088,34119.0,34118.0,0.51979031]
[1625623595618,0.48115088,34119.0,34118.0,1.55053259]
[1625623597238,0.76181088,34119.0,34118.0,1.55053259]
[1625623597599,0.76181088,34119.0,34118.0,0.51979031]
[1625623599279,0.76181088,34119.0,34118.0,1.55088548]
[1625623602403,0.76181088,34119.0,34118.0,2.7545987]
[1625623606305,0.76181088,34119.0,34118.0,4.13224647]
[1625623606426,0.48115088,34119.0,34118.0,4.13224647]
[1625623606787,0.48115088,34119.0,34118.0,4.13224469]
[1625623607570,0.48115088,34119.0,34118.0,4.37282013]
[1625623609491,0.48115088,34119.0,34118.0,5.0617314]
[1625623610152,0.34406774,34121.0,34118.0,5.0617314]
[1625623610392,0.34406774,34121.0,34120.0,3.44432185]
[1625623610692,0.85934093,34123.0,34120.0,4.82199781]
[1625623610812,0.85934093,34123.0,34120.0,4.82649333]
[1625623610935,0.85934093,34123.0,34122.0,3.4443598]
[1625623611234,0.85934093,34123.0,34122.0,3.44885536]
[1625623611355,0.34377073,34123.0,34122.0,3.44885536]
[1625623611654,0.34377073,34123.0,34122.0,3.93000624]
[1625623612258,0.85971722,34123.0,34122.0,3.93000624]
[1625623612917,0.34377073,34123.0,34122.0,3.93000624]
[1625623613158,0.85973403,34123.0,34122.0,3.93000624]
[1625623613578,0.34377073,34123.0,34122.0,3.93000624]
[1625623613819,1.20359543,34123.0,34122.0,3.93000624]
[1625623614298,1.20359543,34123.0,34122.0,2.72448031]
[1625623614780,2.23436378,34123.0,34122.0,2.72448031]
[1625623616403,2.56376378,34123.0,34122.0,2.72448031]
[1625623617002,2.56376378,34123.0,34122.0,1.69117237]
[1625623617423,3.76585738,34123.0,34122.0,0.83010857]
[1625623617666,5.62007936,34123.0,34122.0,0.245071]
[1625623617904,5.6332938,34123.0,34122.0,0.245071]
[1625623619526,5.62007936,34123.0,34122.0,0.245071]
[1625623620245,5.63329415,34123.0,34122.0,0.245071]
[1625623621928,5.62007936,34123.0,34122.0,0.245071]
[1625623622108,5.70707936,34123.0,34122.0,0.245071]
[1625623622829,5.62007936,34123.0,34122.0,0.245071]
[1625623622951,5.63330584,34123.0,34122.0,0.245071]
[1625623623971,5.72040584,34123.0,34122.0,0.245071]
[1625623624631,5.63330584,34123.0,34122.0,0.245071]
[1625623625292,5.62007936,34123.0,34122.0,0.245071]
[1625623625774,5.70807936,34123.0,34122.0,0.245071]
[1625623627159,5.72130911,34123.0,34122.0,0.245071]
[1625623627401,5.70807936,34123.0,34122.0,0.245071]
[1625623628182,5.72131842,34123.0,34122.0,0.245071]
[1625623628301,5.63331842,34123.0,34122.0,0.245071]
[1625623629501,5.62007936,34123.0,34122.0,0.245071]
[1625623629802,7.25939326,34123.0,34122.0,0.245071]
[1625623630043,7.24615408,34123.0,34122.0,0.245071]
[1625623630944,7.15935408,34123.0,34122.0,0.245071]
[1625623631305,7.15935408,34123.0,34122.0,0.24057544]
[1625623631905,7.24715408,34123.0,34122.0,0.24057544]
[1625623632985,7.15935408,34123.0,34122.0,0.24057544]
[1625623637380,7.15935408,34123.0,34118.0,0.86242391]
[1625623637798,1.5358213,34122.0,34119.0,0.1769912]
[1625623637920,4.77808033,34120.0,34119.0,0.1769912]
[1625623638939,4.77808033,34120.0,34119.0,0.00448912]
[1625623639120,6.40186835,34120.0,34119.0,0.00448912]
[1625623639240,6.40186835,34120.0,34118.0,0.17252242]
[1625623639720,0.24057544,34119.0,34118.0,0.17252242]
[1625623640020,0.24057544,34119.0,34118.0,0.17701169]
[1625623640202,0.24057544,34119.0,34118.0,0.00448927]
[1625623640562,5.02057359,34119.0,34118.0,0.17251113]
[1625623640801,5.02057359,34119.0,34118.0,0.17700044]
[1625623641042,5.02057359,34119.0,34118.0,0.5220919]
[1625623641643,5.02057359,34119.0,34118.0,0.00448931]
[1625623642603,5.02057359,34119.0,34118.0,0.52209044]
[1625623642844,5.02057359,34119.0,34118.0,0.17702302]
[1625623643026,5.02057359,34119.0,34118.0,0.17253371]
[1625623643147,6.55923842,34119.0,34116.0,0.24057544]
[1625623643265,6.32049372,34117.0,34116.0,0.24057544]
[1625623643686,6.33373032,34117.0,34116.0,0.24506614]
[1625623643867,6.57430576,34117.0,34116.0,0.0044907]
[1625623644346,6.57430576,34117.0,34114.0,0.00449093]
[1625623644586,5.0162,34115.0,34113.0,0.24057544]
[1625623644706,11.60736208,34115.0,34113.0,0.24057544]
[1625623644886,6.3146392,34114.0,34113.0,0.24057544]
[1625623645729,6.3146392,34114.0,34113.0,0.24506648]
[1625623645848,6.55521464,34114.0,34113.0,0.24506648]
[1625623646088,6.55521464,34114.0,34113.0,0.00449104]
[1625623646449,6.55521464,34114.0,34110.0,0.17244417]
[1625623646570,6.55521464,34114.0,34109.0,0.75791951]
[1625623646809,4.7759455,34110.0,34109.0,0.75791951]
[1625623647050,4.7759455,34110.0,34109.0,0.24057544]
[1625623647231,4.7759455,34110.0,34109.0,0.24506722]
[1625623647713,4.7759455,34110.0,34109.0,0.00449178]
[1625623647837,5.25709638,34110.0,34109.0,0.00449178]
[1625623648072,6.79023208,34110.0,34105.0,0.51740631]
[1625623648192,6.79023208,34110.0,34103.0,0.68987508]
[1625623648315,4.98931389,34106.0,34102.0,0.51707544]
[1625623648554,6.28703984,34103.0,34099.0,0.24057544]
[1625623648794,4.75743595,34100.0,34099.0,0.24057544]
[1625623649813,5.23858683,34100.0,34099.0,0.24057544]
[1625623650176,5.23858683,34100.0,34099.0,0.24506364]
[1625623650296,2.6900757,34100.0,34099.0,0.58955149]
[1625623650538,1.43006183,34100.0,34099.0,0.75728363]
[1625623650839,1.43006183,34100.0,34099.0,1.44621809]
[1625623651319,0.75037959,34100.0,34099.0,1.44621809]
[1625623651560,1.09042465,34100.0,34099.0,2.47961435]
[1625623651799,0.85024883,34101.0,34099.0,2.48410226]
[1625623651920,0.85024883,34101.0,34099.0,2.75944226]
[1625623652101,0.85024883,34101.0,34100.0,2.23884843]
[1625623652340,0.85024883,34101.0,34100.0,0.51665733]
[1625623652341,0.5101153,34101.0,34100.0,0.51665733]
[1625623652519,0.85008497,34101.0,34100.0,1.20523391]
[1625623652701,0.33996967,34101.0,34100.0,1.20523391]
[1625623652820,0.84985687,34101.0,34100.0,0.51665733]
[1625623653061,0.33996967,34101.0,34100.0,1.20523098]
[1625623653181,0.33996967,34101.0,34100.0,1.20971862]
[1625623653304,0.85065485,34104.0,34100.0,3.44735885]
[1625623653543,0.85110829,34106.0,34103.0,2.23749492]
[1625623653843,0.34047735,34106.0,34105.0,1.92643591]
[1625623654142,0.85111396,34106.0,34105.0,1.92643591]
[1625623654381,0.24057544,34111.0,34105.0,0.72172632]
[1625623654562,0.34044301,34106.0,34105.0,1.9262981]
[1625623655285,0.34044301,34106.0,34105.0,1.23797137]
[1625623655286,0.85091076,34106.0,34105.0,1.23797137]
[1625623655585,1.19103798,34106.0,34105.0,1.06588523]
[1625623655765,1.19103798,34106.0,34105.0,0.72172632]
[1625623656308,2.21097436,34106.0,34105.0,0.72172632]
[1625623656547,3.40018532,34106.0,34105.0,0.72172632]
[1625623657269,4.75891344,34106.0,34105.0,0.72172632]
[1625623657809,4.75891344,34106.0,34105.0,0.48115088]
[1625623657810,4.99948888,34106.0,34105.0,0.48115088]
[1625623658351,4.99948888,34106.0,34105.0,0.24057544]
[1625623659314,4.99948888,34106.0,34098.0,0.24057544]
[1625623659433,5.05648888,34106.0,34098.0,0.24057544]
[1625623659613,2.2034408,34099.0,34098.0,0.24057544]
[1625623659733,2.5020208,34099.0,34098.0,0.24057544]
[1625623659852,2.98317168,34099.0,34098.0,0.24057544]
[1625623660154,1.96626418,34099.0,34098.0,0.24057544]
[1625623660395,2.98312303,34099.0,34098.0,0.24057544]
[1625623660754,3.07022303,34099.0,34098.0,0.24057544]
[1625623660873,2.05336418,34099.0,34098.0,0.24057544]
[1625623661477,1.20578003,34099.0,34098.0,0.24057544]
[1625623661715,2.05258164,34099.0,34098.0,0.24057544]
[1625623662198,1.71395381,34099.0,34098.0,0.24057544]
[1625623662438,1.20575072,34099.0,34098.0,0.24057544]
[1625623662737,1.71405652,34099.0,34098.0,0.24057544]
[1625623663102,1.20575072,34099.0,34098.0,0.24057544]
[1625623664245,0.86683088,34099.0,34098.0,0.24057544]
[1625623664783,0.56825088,34099.0,34098.0,0.24057544]
[1625623667490,0.56825088,34099.0,34098.0,0.24506207]
[1625623669355,0.56825088,34099.0,34098.0,0.48709207]
[1625623669594,0.56825088,34099.0,34098.0,0.57295478]
[1625623670075,0.56825088,34099.0,34098.0,0.83050901]
[1625623670618,0.56825088,34099.0,34098.0,0.57294844]
[1625623670858,0.91716088,34099.0,34098.0,0.57294844]
[1625623670980,0.91716088,34099.0,34098.0,0.33091844]
[1625623671158,0.91716088,34099.0,34098.0,0.24506207]
[1625623673384,1.00205494,34099.0,34098.0,0.24506207]
[1625623673564,0.91716088,34099.0,34098.0,0.24506207]
[1625623673744,0.91716088,34099.0,34098.0,0.33097231]
[1625623674166,0.56825088,34099.0,34098.0,0.33097231]
[1625623674705,0.56825088,34099.0,34098.0,1.10413316]
[1625623675066,0.56825088,34099.0,34098.0,0.76050472]
[1625623675909,0.32767544,34099.0,34098.0,1.4479113]
[1625623678674,0.32767544,34099.0,34098.0,2.47940756]
[1625623679756,0.24057544,34099.0,34098.0,2.47940756]
[1625623679996,0.42436868,34102.0,34098.0,2.47940756]
[1625623680120,0.08498724,34101.0,34098.0,1.4479113]
[1625623680296,1.18783,34103.0,34098.0,1.4479113]
[1625623680297,0.08506223,34104.0,34100.0,2.2351212]
[1625623680538,0.08506223,34104.0,34101.0,0.00448911]
[1625623680718,0.08508192,34105.0,34103.0,0.51578863]
[1625623680963,0.84895314,34104.0,34103.0,0.51578863]
[1625623681078,0.84895314,34104.0,34102.0,0.4298329]
[1625623681318,0.08503195,34103.0,34102.0,0.4298329]
[1625623681439,0.17213195,34103.0,34102.0,0.4298329]
[1625623681741,0.51176723,34103.0,34102.0,0.09045589]
[1625623681920,0.75234267,34103.0,34102.0,0.33103133]
[1625623682340,0.41270739,34103.0,34102.0,0.5889745]
[1625623682520,0.41270739,34103.0,34102.0,0.67495177]
[1625623682940,0.41270739,34103.0,34102.0,1.10486349]
[1625623683060,0.32560739,34103.0,34102.0,1.10486349]
[1625623683180,0.24057544,34103.0,34102.0,0.76095374]
[1625623683482,0.24057544,34103.0,34102.0,1.44887392]
[1625623683963,0.24057544,34103.0,34102.0,2.48082296]
[1625623684563,0.24057544,34103.0,34102.0,1.44887392]
[1625623686187,0.24057544,34103.0,34102.0,2.48105607]
[1625623686427,0.24057544,34103.0,34102.0,2.75758607]
[1625623686667,0.08518262,34104.0,34102.0,2.75758607]
[1625623686911,0.66711336,34106.0,34103.0,2.24110089]
[1625623687208,0.08539838,34105.0,34104.0,0.69268635]
[1625623687389,0.08539838,34105.0,34104.0,1.20882931]
[1625623688050,0.08539838,34105.0,34104.0,1.44940475]
[1625623688291,0.42654312,34105.0,34104.0,1.44940475]
[1625623689072,0.08539838,34105.0,34104.0,2.48197673]
[1625623691114,0.42669636,34105.0,34104.0,2.48197673]
[1625623691358,0.08539838,34105.0,34104.0,2.48197673]
[1625623692318,0.42689437,34105.0,34104.0,2.48197673]
[1625623692859,0.08539838,34105.0,34104.0,2.48197673]
[1625623693037,0.4268807,34105.0,34104.0,2.48197673]
[1625623693518,0.34148232,34105.0,34104.0,2.48197673]
[1625623693817,0.42700153,34105.0,34104.0,2.48197673]
[1625623694299,0.34148232,34105.0,34104.0,3.68787023]
[1625623694478,0.42703103,34105.0,34104.0,3.68787023]
[1625623695261,0.34148232,34105.0,34104.0,3.68787023]
[1625623695440,0.42703047,34105.0,34104.0,3.68787023]
[1625623695739,0.34148232,34105.0,34104.0,3.68787023]
[1625623695858,0.8538908,34105.0,34104.0,3.68787023]
[1625623696158,0.8538908,34105.0,34104.0,2.47748794]
[1625623696339,0.51240848,34105.0,34104.0,3.68825864]
[1625623696459,0.51240848,34105.0,34104.0,3.6927461]
[1625623696637,0.85406187,34105.0,34104.0,3.6927461]
[1625623697361,0.51240848,34105.0,34104.0,3.6927461]
[1625623698324,0.85427432,34105.0,34104.0,5.0722725]
[1625623698567,0.51240848,34105.0,34104.0,5.0722725]
[1625623698745,0.59940848,34105.0,34104.0,5.0722725]
[1625623698864,0.94125515,34105.0,34104.0,5.0722725]
[1625623699344,0.51444949,34105.0,34104.0,5.0722725]
[1625623699526,0.17260282,34105.0,34104.0,5.0722725]
[1625623699704,0.08560282,34105.0,34104.0,5.0722725]
[1625623700845,0.42761927,34105.0,34104.0,5.0722725]
[1625623701024,0.34201645,34105.0,34104.0,5.0722725]
[1625623701985,0.85484507,34105.0,34104.0,5.0722725]
[1625623702165,0.85484507,34105.0,34104.0,4.55612954]
[1625623702285,0.51282862,34105.0,34104.0,5.07374191]
[1625623702826,0.85492034,34105.0,34104.0,5.07374191]
[1625623703071,0.34209172,34105.0,34104.0,5.07374191]
[1625623703667,0.42777168,34105.0,34104.0,5.07374191]
[1625623707218,0.34209172,34105.0,34104.0,5.07374191]
[1625623707996,0.85510466,34105.0,34104.0,5.07374191]
[1625623709379,0.85510466,34105.0,34104.0,5.29054191]
[1625623709499,0.42751833,34105.0,34104.0,5.29054191]
[1625623709980,0.08542661,34105.0,34104.0,5.29054191]
[1625623710460,0.42653368,34105.0,34104.0,5.29054191]
[1625623710759,0.34110707,34105.0,34104.0,5.29054191]
[1625623712139,0.42652734,34105.0,34104.0,5.29054191]
[1625623713521,0.08542027,34105.0,34104.0,5.29054191]
[1625623714428,0.8526252,34105.0,34104.0,5.29054191]
[1625623714903,0.51154103,34105.0,34104.0,5.29054191]
[1625623715324,1.19341835,34105.0,34104.0,3.91101551]
[1625623716586,1.19341835,34105.0,34104.0,3.69421551]
[1625623717667,1.19341835,34105.0,34104.0,4.04255551]
[1625623718930,0.51154103,34105.0,34104.0,5.42240498]
[1625623719952,0.85271198,34105.0,34104.0,5.42240498]
[1625623720370,1.19352269,34105.0,34104.0,4.04255551]
[1625623720492,1.19352269,34105.0,34104.0,3.69421551]
[1625623721331,2.21637665,34105.0,34104.0,3.68972802]
[1625623724277,3.40946731,34105.0,34104.0,3.68972802]
[1625623724699,3.40946731,34105.0,34104.0,2.48344481]
[1625623725837,3.40946731,34105.0,34104.0,3.69174552]
[1625623728299,4.77338242,34105.0,34104.0,2.48344481]
[1625623728662,5.07128242,34105.0,34104.0,2.48344481]
[1625623728783,5.07128242,34105.0,34104.0,1.45087283]
[1625623729805,4.77338242,34105.0,34104.0,1.45087283]
[1625623729925,4.77338242,34105.0,34104.0,2.48711198]
[1625623732207,3.40946731,34105.0,34104.0,3.69605347]
[1625623732507,4.77351625,34105.0,34104.0,3.69605347]
[1625623732866,4.77351625,34105.0,34104.0,2.48711198]
[1625623733350,4.77351625,34105.0,34104.0,3.69646719]
[1625623734192,4.77351625,34105.0,34104.0,2.48711198]
[1625623735334,4.77351625,34105.0,34104.0,3.69656354]
[1625623739966,4.77351625,34105.0,34104.0,2.48711198]
[1625623741051,4.77351625,34105.0,34104.0,2.82921198]
[1625623741652,4.77351625,34105.0,34104.0,4.03904244]
[1625623742616,3.40946731,34105.0,34104.0,5.42167039]
[1625623743812,4.77839151,34105.0,34104.0,4.03904244]
[1625623744238,5.01896695,34105.0,34104.0,4.03904244]
[1625623744720,5.01896695,34105.0,34104.0,2.82921198]
[1625623745198,5.01896695,34105.0,34104.0,4.03906472]
[1625623745440,5.01896695,34105.0,34104.0,2.82921198]
[1625623747060,4.77839151,34105.0,34104.0,2.82921198]
[1625623748325,5.01896695,34105.0,34104.0,2.82921198]
[1625623749888,5.01896695,34105.0,34104.0,4.03884196]
[1625623750612,5.01896695,34105.0,34104.0,2.82921198]
[1625623755791,5.01896695,34105.0,34104.0,4.03874747]
[1625623756629,3.65004275,34105.0,34104.0,4.03874747]
[1625623757350,3.40946731,34105.0,34104.0,4.03874747]
[1625623757772,0.45617665,34105.0,34104.0,5.92089777]
[1625623757957,0.08580032,34108.0,34104.0,9.20332227]
[1625623758131,0.08580032,34108.0,34104.0,9.2119778]
[1625623758252,0.08581672,34109.0,34107.0,4.14606693]
[1625623758372,0.08581672,34109.0,34108.0,0.48115088]
[1625623758554,0.08583981,34110.0,34108.0,4.63157999]
[1625623758792,0.08583981,34110.0,34109.0,0.50449063]
[1625623758913,0.08583981,34110.0,34109.0,4.15032085]
[1625623759213,0.08582585,34111.0,34109.0,4.15032085]
[1625623759333,0.08582585,34111.0,34110.0,1.20863444]
[1625623759454,0.08582585,34111.0,34110.0,4.14388952]
[1625623759696,0.34269855,34111.0,34110.0,4.14838015]
[1625623759817,1.19874461,34114.0,34110.0,2.59442158]
[1625623760177,6.29606938,34116.0,34112.0,1.67495171]
[1625623760178,1.19858712,34113.0,34112.0,1.67495171]
[1625623760300,1.19858712,34113.0,34112.0,1.91552715]
[1625623760419,1.19858712,34113.0,34112.0,3.12427182]
[1625623760840,1.19858712,34113.0,34112.0,3.12876278]
[1625623761079,1.43871322,34114.0,34112.0,1.74734107]
[1625623761439,1.19813778,34114.0,34113.0,1.20849621]
[1625623761560,1.19813778,34114.0,34113.0,1.2129871]
[1625623762227,1.19848047,34115.0,34113.0,1.2129871]
[1625623762338,1.19848047,34115.0,34113.0,1.45356254]
[1625623762520,1.19848047,34115.0,34114.0,1.20844941]
[1625623762645,1.19848047,34115.0,34114.0,1.21293999]
[1625623762820,1.19796593,34116.0,34114.0,2.59399718]
[1625623763062,1.19796593,34116.0,34115.0,1.20840393]
[1625623763241,1.19796593,34116.0,34115.0,1.21289443]
[1625623763783,1.19808529,34118.0,34115.0,2.59338387]
[1625623764021,1.19819267,34119.0,34117.0,1.20792499]
[1625623764322,1.19819267,34119.0,34118.0,1.4484943]
[1625623764441,1.19819267,34119.0,34118.0,1.45298462]
[1625623764682,1.19819267,34119.0,34118.0,0.24506576]
[1625623766065,2.56695245,34119.0,34118.0,0.58555503]
[1625623766305,2.56695245,34119.0,34118.0,0.24057544]
[1625623766544,4.10618384,34119.0,34118.0,0.24057544]
[1625623766786,2.56695245,34119.0,34118.0,0.24057544]
[1625623767927,2.56695245,34119.0,34118.0,0.32681212]
[1625623769550,2.56695245,34119.0,34118.0,0.58544578]
[1625623770044,0.19759267,34119.0,34118.0,0.24057544]
[1625623770214,0.19759267,34119.0,34118.0,0.74506386]
[1625623770333,0.0859347,34122.0,34118.0,3.67515328]
[1625623770454,0.0859347,34122.0,34121.0,0.48115088]
[1625623770573,1.54390859,34132.0,34121.0,0.48115088]
[1625623770574,0.08601773,34125.0,34121.0,4.17279798]
[1625623770752,0.08601773,34125.0,34121.0,4.17728556]
[1625623770870,0.08601773,34125.0,34124.0,1.37856911]
[1625623770991,0.08601773,34125.0,34124.0,1.87856911]
[1625623771114,0.9376,34137.0,34124.0,1.87856911]
[1625623771115,0.34363469,34127.0,34124.0,1.87856911]
[1625623771245,0.34363469,34127.0,34124.0,1.88305574]
[1625623771352,0.343539,34132.0,34126.0,1.37685728]
[1625623771472,0.343539,34132.0,34127.0,0.5]
[1625623771592,0.34373647,34134.0,34130.0,1.37681032]
[1625623771711,0.34373647,34134.0,34131.0,0.75317]
[1625623772011,0.34390743,34136.0,34132.0,1.37675511]
[1625623772191,0.34390743,34136.0,34135.0,3.8966]
[1625623772494,0.34390743,34136.0,34135.0,4.85890176]
[1625623772852,0.34390743,34136.0,34135.0,0.96230176]
[1625623773031,0.9376,34137.0,34135.0,0.96230176]
[1625623774484,0.24057544,34136.0,34135.0,0.72172632]
[1625623774654,1.94424953,34136.0,34135.0,0.72172632]
[1625623776156,0.57378544,34136.0,34135.0,0.72172632]
[1625623776395,1.9430995,34136.0,34135.0,0.72172632]
[1625623776637,0.57378544,34136.0,34135.0,0.72172632]
[1625623779405,0.24057544,34136.0,34135.0,0.72172632]
[1625623779886,0.48424544,34136.0,34135.0,0.72172632]
[1625623780609,0.24367,34136.0,34135.0,0.72172632]
[1625623780731,0.24367,34136.0,34135.0,1.03088632]
[1625623781333,0.9376,34137.0,34135.0,1.03088632]
[1625623783076,0.9376,34137.0,34135.0,0.72172632]
[1625623784526,0.24057544,34136.0,34135.0,0.48115088]
[1625623784642,0.057,34135.0,34125.0,0.58327129]
[1625623784768,0.057,34135.0,34125.0,0.24057544]
[1625623784949,0.34095686,34129.0,34125.0,0.24057544]
[1625623785063,0.65174686,34129.0,34125.0,0.24057544]
[1625623785243,4.82874686,34129.0,34125.0,0.24057544]
[1625623785784,0.65174686,34129.0,34125.0,0.24057544]
[1625623786565,0.58140799,34128.0,34125.0,0.24057544]
[1625623787045,0.24057544,34128.0,34125.0,0.24057544]
[1625623788246,0.5814383,34128.0,34125.0,0.24057544]
[1625623788364,0.24057544,34128.0,34125.0,0.24057544]
[1625623789507,0.48393544,34128.0,34125.0,0.24057544]
[1625623789629,0.34071187,34127.0,34125.0,0.24057544]
[1625623790350,0.057,34126.0,34116.0,0.34268]
[1625623790651,0.34001204,34124.0,34122.0,0.24057544]
[1625623791010,0.33955718,34123.0,34122.0,0.24057544]
[1625623791733,4.5858,34125.0,34122.0,0.24057544]
[1625623791734,0.33927082,34124.0,34122.0,0.24057544]
[1625623792033,4.9247236,34125.0,34122.0,0.24057544]
[1625623792515,0.33866842,34124.0,34122.0,0.24057544]
[1625623794017,0.33844996,34123.0,34122.0,0.24057544]
[1625623794737,5.60081159,34125.0,34122.0,0.24057544]
[1625623795703,1.01677355,34124.0,34122.0,0.24057544]
[1625623799127,1.01677355,34124.0,34119.0,0.24057544]
[1625623799248,1.07389223,34123.0,34116.0,0.24057544]
[1625623799487,0.50857001,34119.0,34116.0,0.24057544]
[1625623799606,0.75238001,34119.0,34116.0,0.24057544]
[1625623800389,0.75238001,34119.0,34118.0,0.001]
[1625623800630,1.23353089,34119.0,34118.0,0.001]
[1625623801292,0.89454069,34119.0,34118.0,0.001]
[1625623801592,1.23365495,34119.0,34118.0,0.001]
[1625623801838,0.89454069,34119.0,34118.0,0.001]
[1625623802314,0.72496088,34119.0,34118.0,0.001]
[1625623802556,0.24381,34119.0,34118.0,0.001]
[1625623802678,0.50889616,34120.0,34118.0,0.24157544]
[1625623803398,0.50889616,34120.0,34118.0,0.49585544]
[1625623803519,0.50924192,34121.0,34118.0,0.49585544]
[1625623803879,0.50924192,34121.0,34118.0,5.06305544]
[1625623804238,0.16980385,34121.0,34118.0,5.06305544]
[1625623804358,0.16980385,34121.0,34119.0,0.00449407]
[1625623804479,0.16982697,34120.0,34119.0,0.00449407]
[1625623804658,0.50929649,34120.0,34118.0,4.80877544]
[1625623804901,0.50934423,34121.0,34118.0,4.80877544]
[1625623805198,0.16986718,34120.0,34118.0,4.80877544]
[1625623805381,0.50938671,34120.0,34118.0,4.80877544]
[1625623806461,0.50938671,34120.0,34118.0,4.80777544]
[1625623806581,0.16990767,34119.0,34118.0,4.80777544]